fUSD/lending_fUSD_20260514
["ID","MTS","AMOUNT","RATE_DAILY","PERIOD"]
[422249731,1778764253000,-500.0,0.00013698,2]
[422249727,1778764253000,-290.84209694,0.00013698,2]
[422249728,1778764253000,-500.0,0.00013698,2]
[422249723,1778764253000,-132.01375694,0.00013698,2]
[422249725,1778764253000,-209.15790306,0.00013698,2]
[422249722,1778764253000,-500.0,0.00013698,2]
[422249724,1778764253000,-367.98624306,0.00013698,2]
[422249721,1778764253000,7800.0,9.9e-05,3]
[422249720,1778764253000,-516.20613567,0.00034,120]
[422249743,1778764253000,-151.0,0.00024658,2]
[422249746,1778764253000,-151.0,0.00024658,2]
[422249761,1778764253000,-638.38,0.00026575,7]
[422249747,1778764253000,-261.716233,0.00024658,2]
[422249773,1778764253000,-0.236,0.000295,7]
[422249772,1778764253000,-478.0,0.00021918,7]
[422249769,1778764253000,-151.0,0.00031,7]
[422249771,1778764253000,-361193.04166339,0.00034,120]
[422249770,1778764253000,-261.716233,0.00031,7]
[422249764,1778764253000,-261.716233,0.000295,7]
[422249745,1778764253000,-1000.0,0.00024658,2]
[422249766,1778764253000,-261.716233,0.000295,7]
[422249763,1778764253000,-151.0,0.000295,7]
[422249759,1778764253000,-638.22,0.00026517,30]
[422249760,1778764253000,-638.22,0.00026546,2]
[422249768,1778764253000,-261.716233,0.00031,7]
[422249765,1778764253000,-151.0,0.000295,7]
[422249767,1778764253000,-151.0,0.00031,7]
[422249757,1778764253000,-638.22,0.00026459,2]
[422249753,1778764253000,-151.0,0.00024658,2]
[422249752,1778764253000,-261.716233,0.00024658,2]
[422249748,1778764253000,-261.716233,0.00024658,2]
[422249750,1778764253000,-151.0,0.00024658,2]
[422249754,1778764253000,-261.716233,0.00024658,2]
[422249749,1778764253000,-261.716233,0.00024658,2]
[422249751,1778764253000,-151.0,0.00024658,2]
[422249755,1778764253000,-930.0,0.00025933,2]
[422249756,1778764253000,-638.22,0.00026431,30]
[422249758,1778764253000,-638.22,0.00026488,7]
[422249762,1778764253000,-11560.1,0.00027397,10]
[422249782,1778764254000,-151.0,0.00024658,2]
[422249793,1778764254000,-261.716242,0.00031,7]
[422249783,1778764254000,-171.972692,0.00024658,2]
[422249781,1778764254000,-151.0,0.00024658,2]
[422249779,1778764254000,-2157.35850018,0.000147,5]
[422249777,1778764254000,-544.54375534,0.00034,120]
[422249778,1778764254000,13100.0,0.000109,3]
[422249785,1778764254000,-848.0,0.0002589,10]
[422249774,1778764254000,-150.764,0.000295,7]
[422249775,1778764254000,-1477.14870304,0.00034,120]
[422249776,1778764254000,-261.716233,0.00024658,2]
[422249780,1778764254000,-442.64149982,0.000147,5]
[422249784,1778764254000,-2915.0,0.0002589,10]
[422249801,1778764254000,-932.44982764,0.00034,120]
[422249791,1778764254000,-261.716233,0.000295,7]
[422249799,1778764254000,-6970.19199569,0.00034,120]
[422249797,1778764254000,-508.07057969,0.00034,120]
[422249800,1778764254000,-398.5,0.00034,120]
[422249798,1778764254000,-2034.65,0.00026027,2]
[422249796,1778764254000,-582.94333414,0.00034,120]
[422249794,1778764254000,-930.0,0.00031933,2]
[422249786,1778764254000,-954.0,0.00026027,10]
[422249792,1778764254000,-151.0,0.00031,7]
[422249787,1778764254000,-201.9544886,0.00026129,2]
[422249788,1778764254000,-500.0,0.00026712,30]
[422249789,1778764254000,-500.0,0.00026712,30]
[422249790,1778764254000,-930.0,0.00028933,2]
[422249795,1778764254000,-190927.53172489,0.00034,120]
[422249802,1778764255000,-362.34446839,9.91e-05,2]
[422249804,1778764312000,200.0,9.9e-05,3]
[422249805,1778764315000,500.0,0.0001,3]
[422249806,1778764354000,-273.96105256,9.66e-05,2]
[422249808,1778764503000,152.141,0.0002739,120]
[422249809,1778764515000,192.70617574,9.709e-05,21]
[422249810,1778764566000,264.983,0.0002739,120]
[422249811,1778764639000,-166.1,9.353e-05,2]
[422249812,1778764639000,-107.86,9.37e-05,2]
[422249814,1778764761000,500.0,0.00012,3]
[422249816,1778764834000,-88.38341644,9.66e-05,2]
[422249817,1778764834000,-45.04222088,9.672e-05,2]
[422249815,1778764834000,-42.14,9.37e-05,2]
[422249818,1778764845000,2000.0,9.025e-05,2]
[422249820,1778764876000,-147.95777912,9.672e-05,2]
[422249821,1778765010000,200.0,9.178e-05,2]
[422249824,1778765034000,955.0,0.00027397,120]
[422249827,1778765080000,408.72558664,9.141e-05,2]
[422249828,1778765080000,500.0,9.141e-05,2]
[422249825,1778765080000,197.33461014,9.141e-05,2]
[422249826,1778765080000,500.0,9.141e-05,2]
[422249829,1778765089000,-166.7,9.141e-05,2]
[422249830,1778765091000,-252.45752639,9.141e-05,2]
[422249831,1778765093000,-200.0,9.141e-05,2]
[422249833,1778765123000,1852.42,9.005e-05,2]
[422249832,1778765123000,163.71,7.189e-05,2]
[422249834,1778765175000,155.55,8.951e-05,2]
[422249835,1778765233000,700.0,9.6e-05,3]
[422249836,1778765235000,1500.0,9.7e-05,3]
[422249837,1778765237000,2200.0,9.8e-05,3]
[422249839,1778765239000,218.45809755,9.9e-05,3]
[422249838,1778765239000,2781.54190245,9.9e-05,3]
[422249840,1778765241000,3800.0,0.0001,3]
[422249842,1778765258000,351.09,4.601e-05,2]
[422249843,1778765258000,136.91508714,4.834e-05,2]
[422249844,1778765258000,214.17491286,4.834e-05,2]
[422249845,1778765259000,351.09,5.067e-05,2]
[422249848,1778765259000,351.09,5.765e-05,2]
[422249847,1778765259000,351.09,5.532e-05,2]
[422249846,1778765259000,351.09,5.299e-05,2]
[422249853,1778765260000,351.09,6.928e-05,2]
[422249852,1778765260000,351.09,6.695e-05,2]
[422249851,1778765260000,351.09,6.463e-05,2]
[422249850,1778765260000,351.09,6.23e-05,2]
[422249849,1778765260000,351.09,5.997e-05,2]
[422249854,1778765261000,351.09,7.161e-05,2]
[422249855,1778765261000,351.09,7.393e-05,2]
[422249856,1778765261000,351.09,7.626e-05,2]
[422249858,1778765261000,118.65982572,7.859e-05,2]
[422249859,1778765261000,351.09,8.092e-05,2]
[422249857,1778765261000,232.43017428,7.859e-05,2]
[422249862,1778765262000,351.09,8.79e-05,2]
[422249861,1778765262000,351.09,8.557e-05,2]
[422249860,1778765262000,351.09,8.324e-05,2]
[422249863,1778765263000,351.09,9.022e-05,2]
[422249864,1778765359000,-253.0,9.14e-05,2]
[422249865,1778765359000,-300.0,9.14e-05,2]
[422249866,1778765359000,-1200.0,9.14e-05,2]
[422249868,1778765359000,-173.24649488,9.14e-05,2]
[422249869,1778765359000,-327.60355215,9.14e-05,2]
[422249870,1778765359000,-2946.20904897,9.141e-05,2]
[422249867,1778765359000,-300.0,9.14e-05,2]
[422249871,1778765409000,785.06,8.882e-05,2]
[422249872,1778765424000,183.89,8.882e-05,2]
[422249893,1778765433000,-150.0,9.596e-05,2]
[422249890,1778765433000,-150.0,9.414e-05,2]
[422249892,1778765433000,-150.0,9.505e-05,2]
[422249891,1778765433000,-173.24649486,9.474e-05,2]
[422249885,1778765433000,-14654.85092847,9.141e-05,2]
[422249886,1778765433000,-150.0,9.231e-05,2]
[422249889,1778765433000,-166.12,9.327e-05,2]
[422249883,1778765433000,-155.76592265,9.14e-05,2]
[422249884,1778765433000,-694.52229939,9.141e-05,2]
[422249882,1778765433000,-697.11422079,9.14e-05,2]
[422249880,1778765433000,-1200.0,9.14e-05,2]
[422249879,1778765433000,-300.0,9.14e-05,2]
[422249881,1778765433000,-2193.80444737,9.14e-05,2]
[422249878,1778765433000,-300.0,9.14e-05,2]
[422249898,1778765433000,-231.38574729,9.707e-05,2]
[422249888,1778765433000,-150.0,9.322e-05,2]
[422249896,1778765433000,-251.10587392,9.707e-05,2]
[422249887,1778765433000,-164.2233,9.231e-05,2]
[422249901,1778765433000,-500.0,9.707e-05,2]
[422249897,1778765433000,-500.0,9.707e-05,2]
[422249908,1778765433000,-594.51805,9.708e-05,2]
[422249909,1778765433000,-525.44413228,9.708e-05,2]
[422249912,1778765433000,-2666.56882091,9.708e-05,2]
[422249906,1778765433000,-123101.41971865,9.708e-05,2]
[422249911,1778765433000,-933.29910589,9.708e-05,2]
[422249910,1778765433000,-642.03266483,9.708e-05,2]
[422249905,1778765433000,-93505.36787773,9.708e-05,2]
[422249907,1778765433000,-1254.41808677,9.708e-05,2]
[422249913,1778765433000,-416.07694567,9.708e-05,2]
[422249903,1778765433000,-796881.38058294,9.708e-05,2]
[422249902,1778765433000,-150.0,9.707e-05,2]
[422249894,1778765433000,-1415.24878148,9.608e-05,2]
[422249900,1778765433000,-537.10093502,9.707e-05,2]
[422249895,1778765433000,-500.0,9.707e-05,2]
[422249899,1778765433000,-500.0,9.707e-05,2]
[422249904,1778765433000,-25140.39943905,9.708e-05,2]
[422249928,1778765437000,-500.0,9.707e-05,2]
[422249922,1778765437000,-440.83930776,9.707e-05,2]
[422249923,1778765437000,-500.0,9.707e-05,2]
[422249927,1778765437000,-500.0,9.707e-05,2]
[422249926,1778765437000,-170.56169683,9.707e-05,2]
[422249929,1778765437000,-500.0,9.707e-05,2]
[422249925,1778765437000,-500.0,9.707e-05,2]
[422249930,1778765437000,-500.0,9.707e-05,2]
[422249933,1778765437000,-500.0,9.707e-05,2]
[422249932,1778765437000,-500.0,9.707e-05,2]
[422249931,1778765437000,-500.0,9.707e-05,2]
[422249924,1778765437000,-510.49984462,9.707e-05,2]
[422249975,1778765438000,-500.0,9.707e-05,2]
[422249981,1778765438000,-173.24649486,9.807e-05,2]
[422249976,1778765438000,-500.0,9.707e-05,2]
[422249977,1778765438000,-454339.07457528,9.708e-05,2]
[422249974,1778765438000,-500.0,9.707e-05,2]
[422249984,1778765438000,-2000.0,9.809e-05,2]
[422249970,1778765438000,-500.0,9.707e-05,2]
[422249973,1778765438000,-500.0,9.707e-05,2]
[422249971,1778765438000,-500.0,9.707e-05,2]
[422249964,1778765438000,-500.0,9.707e-05,2]
[422249960,1778765438000,-500.0,9.707e-05,2]
[422249979,1778765438000,-2048.1858,9.709e-05,2]
[422249983,1778765438000,-10000.0,9.809e-05,2]
[422249972,1778765438000,-500.0,9.707e-05,2]
[422249995,1778765438000,-184.1,9.909e-05,2]
[422249980,1778765438000,-64105.79785128,9.798e-05,2]
[422249985,1778765438000,-28311.6179,9.809e-05,2]
[422249987,1778765438000,-161.92843279,9.859e-05,2]
[422249997,1778765438000,-190.48901714,9.909e-05,2]
[422249998,1778765438000,-1000.0,0.0001,2]
[422249986,1778765438000,-5000.0,9.809e-05,2]
[422249990,1778765438000,-44207.0,9.89e-05,2]
[422249991,1778765438000,-21718.92,9.89e-05,2]
[422249988,1778765438000,-161.92843278,9.859e-05,2]
[422249989,1778765438000,-169.0,9.89e-05,2]
[422249996,1778765438000,-1878.76668486,9.909e-05,2]
[422249994,1778765438000,-184.1,9.909e-05,2]
[422249992,1778765438000,-500.0,9.908e-05,2]
[422249963,1778765438000,-500.0,9.707e-05,2]
[422249978,1778765438000,-259.4061307,9.709e-05,2]
[422249965,1778765438000,-500.0,9.707e-05,2]
[422249954,1778765438000,-500.0,9.707e-05,2]
[422249969,1778765438000,-500.0,9.707e-05,2]
[422249937,1778765438000,-500.0,9.707e-05,2]
[422249936,1778765438000,-500.0,9.707e-05,2]
[422249939,1778765438000,-500.0,9.707e-05,2]
[422249935,1778765438000,-500.0,9.707e-05,2]
[422249941,1778765438000,-500.0,9.707e-05,2]
[422249934,1778765438000,-500.0,9.707e-05,2]
[422249938,1778765438000,-500.0,9.707e-05,2]
[422249940,1778765438000,-500.0,9.707e-05,2]
[422249942,1778765438000,-500.0,9.707e-05,2]
[422249943,1778765438000,-500.0,9.707e-05,2]
[422249944,1778765438000,-500.0,9.707e-05,2]
[422249948,1778765438000,-500.0,9.707e-05,2]
[422249945,1778765438000,-500.0,9.707e-05,2]
[422249951,1778765438000,-500.0,9.707e-05,2]
[422249961,1778765438000,-500.0,9.707e-05,2]
[422249946,1778765438000,-500.0,9.707e-05,2]
[422249950,1778765438000,-500.0,9.707e-05,2]
[422249993,1778765438000,-2500000.0,9.909e-05,2]
[422249955,1778765438000,-500.0,9.707e-05,2]
[422249947,1778765438000,-609.6128307,9.707e-05,2]
[422249953,1778765438000,-500.0,9.707e-05,2]
[422249949,1778765438000,-500.0,9.707e-05,2]
[422249956,1778765438000,-500.0,9.707e-05,2]
[422249958,1778765438000,-500.0,9.707e-05,2]
[422249957,1778765438000,-500.0,9.707e-05,2]
[422249966,1778765438000,-500.0,9.707e-05,2]
[422249962,1778765438000,-500.0,9.707e-05,2]
[422249968,1778765438000,-500.0,9.707e-05,2]
[422249959,1778765438000,-500.0,9.707e-05,2]
[422249967,1778765438000,-500.0,9.707e-05,2]
[422249952,1778765438000,-500.0,9.707e-05,2]
[422249999,1778765438000,-361.1231318,0.0001,2]
[422249982,1778765438000,-2164.3104,9.808e-05,2]
[422250000,1778765438000,-183.5391706,0.0001,2]
[422250033,1778765438000,-499.99,0.00011281,2]
[422250036,1778765438000,-299.99,0.00011281,2]
[422250038,1778765438000,-150.99,0.00011281,2]
[422250039,1778765438000,-9999.99,0.00011281,2]
[422250040,1778765438000,-1673.65,0.00011281,2]
[422250043,1778765438000,-999.99,0.00011281,2]
[422250041,1778765438000,-520.28,0.00011281,2]
[422250046,1778765438000,-9999.99,0.00011281,2]
[422250042,1778765438000,-3011.93,0.00011281,2]
[422250047,1778765438000,-7011.61,0.00011281,2]
[422250049,1778765438000,-166.1,0.00011691,2]
[422250048,1778765438000,-2000.0,0.00011282,2]
[422250044,1778765438000,-7269.33,0.00011281,2]
[422250045,1778765438000,-7647.87,0.00011281,2]
[422250050,1778765438000,-433.0,0.00011745,2]
[422250052,1778765438000,-500.0,0.00012,2]
[422250051,1778765438000,-155.55,0.00011934,2]
[422250066,1778765438000,-160.0,0.00012945,2]
[422250065,1778765438000,-736.0,0.0001292,2]
[422250064,1778765438000,-29999.99,0.00012893,2]
[422250001,1778765438000,-183.5391706,0.0001,2]
[422250060,1778765438000,-420.38,0.00012329,2]
[422250055,1778765438000,-250.0,0.00012078,2]
[422250034,1778765438000,-255.49,0.00011281,2]
[422250059,1778765438000,-165.29,0.00012177,2]
[422250056,1778765438000,-823.0,0.00012165,2]
[422250063,1778765438000,-4907.47,0.00012893,2]
[422250061,1778765438000,-2000.0,0.0001241,2]
[422250062,1778765438000,-785.06,0.00012435,2]
[422250054,1778765438000,-36039.4,0.00012055,2]
[422250053,1778765438000,-1206.80193105,0.00012051,2]
[422250058,1778765438000,-25430.50769213,0.00012173,2]
[422250032,1778765438000,-1206.80193105,0.00011099,2]
[422250057,1778765438000,-3292.0,0.00012165,2]
[422250030,1778765438000,-25430.50769213,0.00011099,2]
[422250031,1778765438000,-1206.80193105,0.00011099,2]
[422250009,1778765438000,-193.0,0.00010054,2]
[422250002,1778765438000,-184.1,0.00010002,2]
[422250007,1778765438000,-250.0,0.00010054,2]
[422250006,1778765438000,-1680.0,0.00010053,2]
[422250003,1778765438000,-184.1,0.00010002,2]
[422250008,1778765438000,-250.0,0.00010054,2]
[422250010,1778765438000,-4532.64478541,0.00010054,2]
[422250004,1778765438000,-420.0,0.00010053,2]
[422250011,1778765438000,-250.0,0.00010054,2]
[422250012,1778765438000,-160.0,0.00010088,2]
[422250013,1778765438000,-208.3309892,0.00010088,2]
[422250015,1778765438000,-150.0,0.0001012,2]
[422250016,1778765438000,-150.0,0.0001012,2]
[422250021,1778765438000,-423.57087373,0.00010456,2]
[422250005,1778765438000,-337.0,0.00010053,2]
[422250037,1778765438000,-1578.13,0.00011281,2]
[422250035,1778765438000,-9999.99,0.00011281,2]
[422250027,1778765438000,-587.0,0.00011059,2]
[422250028,1778765438000,-2351.0,0.00011059,2]
[422250029,1778765438000,-25430.50769213,0.00011099,2]
[422250014,1778765438000,-214.95940296,0.00010102,2]
[422250025,1778765438000,-150.0,0.00010959,2]
[422250026,1778765438000,-150.0,0.00010959,2]
[422250024,1778765438000,-163.71,0.00010783,2]
[422250020,1778765438000,-165.29,0.00010452,2]
[422250022,1778765438000,-255.0,0.00010677,2]
[422250019,1778765438000,-155.55,0.00010443,2]
[422250023,1778765438000,-7502.8360185,0.00010738,2]
[422250017,1778765438000,-2000.0,0.00010154,2]
[422250018,1778765438000,-500.0,0.00010182,2]
[422250104,1778765439000,-500.0,0.00013698,2]
[422250105,1778765439000,-500.0,0.00013698,2]
[422250106,1778765439000,-500.0,0.00013698,2]
[422250103,1778765439000,-500.0,0.00013698,2]
[422250112,1778765439000,-500.0,0.00013698,2]
[422250125,1778765439000,-500.0,0.00013698,2]
[422250101,1778765439000,-500.0,0.00013698,2]
[422250113,1778765439000,-500.0,0.00013698,2]
[422250111,1778765439000,-500.0,0.00013698,2]
[422250102,1778765439000,-500.0,0.00013698,2]
[422250099,1778765439000,-500.0,0.00013698,2]
[422250107,1778765439000,-500.0,0.00013698,2]
[422250097,1778765439000,-619.09086971,0.00013698,2]
[422250115,1778765439000,-500.0,0.00013698,2]
[422250110,1778765439000,-500.0,0.00013698,2]
[422250109,1778765439000,-500.0,0.00013698,2]
[422250114,1778765439000,-500.0,0.00013698,2]
[422250126,1778765439000,-500.0,0.00013698,2]
[422250116,1778765439000,-520.0293993,0.00013698,2]
[422250117,1778765439000,-500.0,0.00013698,2]
[422250120,1778765439000,-500.0,0.00013698,2]
[422250119,1778765439000,-500.0,0.00013698,2]
[422250118,1778765439000,-500.0,0.00013698,2]
[422250123,1778765439000,-500.0,0.00013698,2]
[422250122,1778765439000,-500.0,0.00013698,2]
[422250121,1778765439000,-500.0,0.00013698,2]
[422250100,1778765439000,-507.15627863,0.00013698,2]
[422250108,1778765439000,-500.0,0.00013698,2]
[422250098,1778765439000,-500.0,0.00013698,2]
[422250083,1778765439000,-501.8654968,0.00013698,2]
[422250089,1778765439000,-500.0,0.00013698,2]
[422250124,1778765439000,-500.0,0.00013698,2]
[422250076,1778765439000,-2000.0,0.00013538,2]
[422250067,1778765439000,-200.0,0.00013,2]
[422250068,1778765439000,-500.0,0.00013,2]
[422250075,1778765439000,-155.55,0.00013426,2]
[422250069,1778765439000,-150.0,0.00013057,2]
[422250073,1778765439000,-1152.0,0.00013381,2]
[422250072,1778765439000,-25430.50769213,0.00013355,2]
[422250070,1778765439000,-1206.80193105,0.00013172,2]
[422250071,1778765439000,-183.89,0.00013323,2]
[422250074,1778765439000,-4609.0,0.00013381,2]
[422250077,1778765439000,-500.0,0.00013698,2]
[422250078,1778765439000,-500.0,0.00013698,2]
[422250094,1778765439000,-500.0,0.00013698,2]
[422250079,1778765439000,-500.0,0.00013698,2]
[422250082,1778765439000,-500.0,0.00013698,2]
[422250080,1778765439000,-252.89001663,0.00013698,2]
[422250086,1778765439000,-500.0,0.00013698,2]
[422250085,1778765439000,-500.0,0.00013698,2]
[422250084,1778765439000,-500.0,0.00013698,2]
[422250087,1778765439000,-500.0,0.00013698,2]
[422250088,1778765439000,-500.0,0.00013698,2]
[422250090,1778765439000,-457.83735214,0.00013698,2]
[422250091,1778765439000,-206.14424477,0.00013698,2]
[422250093,1778765439000,-500.0,0.00013698,2]
[422250095,1778765439000,-500.0,0.00013698,2]
[422250092,1778765439000,-500.0,0.00013698,2]
[422250096,1778765439000,-500.0,0.00013698,2]
[422250081,1778765439000,-500.0,0.00013698,2]
[422250128,1778765439000,-500.0,0.00013698,2]
[422250178,1778765439000,-500.0,0.00013698,2]
[422250127,1778765439000,-500.0,0.00013698,2]
[422250162,1778765439000,-500.0,0.00013698,2]
[422250161,1778765439000,-500.0,0.00013698,2]
[422250158,1778765439000,-500.0,0.00013698,2]
[422250166,1778765439000,-500.0,0.00013698,2]
[422250174,1778765439000,-500.0,0.00013698,2]
[422250175,1778765439000,-500.0,0.00013698,2]
[422250165,1778765439000,-500.0,0.00013698,2]
[422250167,1778765439000,-500.0,0.00013698,2]
[422250169,1778765439000,-500.0,0.00013698,2]
[422250172,1778765439000,-500.0,0.00013698,2]
[422250168,1778765439000,-500.0,0.00013698,2]
[422250176,1778765439000,-500.0,0.00013698,2]
[422250170,1778765439000,-500.0,0.00013698,2]
[422250160,1778765439000,-500.0,0.00013698,2]
[422250173,1778765439000,-500.0,0.00013698,2]
[422250180,1778765439000,-500.0,0.00013698,2]
[422250182,1778765439000,-500.0,0.00013698,2]
[422250183,1778765439000,-500.0,0.00013698,2]
[422250181,1778765439000,-500.0,0.00013698,2]
[422250184,1778765439000,-500.0,0.00013698,2]
[422250185,1778765439000,-500.0,0.00013698,2]
[422250186,1778765439000,-500.0,0.00013698,2]
[422250188,1778765439000,-500.0,0.00013698,2]
[422250190,1778765439000,-500.0,0.00013698,2]
[422250192,1778765439000,-500.0,0.00013698,2]
[422250194,1778765439000,-500.0,0.00013698,2]
[422250196,1778765439000,-500.0,0.00013698,2]
[422250131,1778765439000,-524.1684879,0.00013698,2]
[422250177,1778765439000,-500.0,0.00013698,2]
[422250159,1778765439000,-500.0,0.00013698,2]
[422250171,1778765439000,-500.0,0.00013698,2]
[422250164,1778765439000,-500.0,0.00013698,2]
[422250138,1778765439000,-500.0,0.00013698,2]
[422250163,1778765439000,-500.0,0.00013698,2]
[422250130,1778765439000,-500.0,0.00013698,2]
[422250132,1778765439000,-500.0,0.00013698,2]
[422250129,1778765439000,-500.0,0.00013698,2]
[422250134,1778765439000,-500.0,0.00013698,2]
[422250135,1778765439000,-500.0,0.00013698,2]
[422250133,1778765439000,-249.29936447,0.00013698,2]
[422250136,1778765439000,-524.74495617,0.00013698,2]
[422250140,1778765439000,-500.0,0.00013698,2]
[422250145,1778765439000,-500.0,0.00013698,2]
[422250144,1778765439000,-500.0,0.00013698,2]
[422250151,1778765439000,-500.0,0.00013698,2]
[422250139,1778765439000,-500.0,0.00013698,2]
[422250137,1778765439000,-500.0,0.00013698,2]
[422250142,1778765439000,-500.0,0.00013698,2]
[422250155,1778765439000,-500.0,0.00013698,2]
[422250143,1778765439000,-500.0,0.00013698,2]
[422250156,1778765439000,-500.0,0.00013698,2]
[422250152,1778765439000,-500.0,0.00013698,2]
[422250153,1778765439000,-500.0,0.00013698,2]
[422250154,1778765439000,-500.0,0.00013698,2]
[422250148,1778765439000,-500.0,0.00013698,2]
[422250157,1778765439000,-500.0,0.00013698,2]
[422250146,1778765439000,-500.0,0.00013698,2]
[422250147,1778765439000,-506.53569257,0.00013698,2]
[422250141,1778765439000,-506.12951293,0.00013698,2]
[422250150,1778765439000,-500.0,0.00013698,2]
[422250149,1778765439000,-500.0,0.00013698,2]
[422250239,1778765440000,-528.72285932,0.00013698,2]
[422250240,1778765440000,-500.0,0.00013698,2]
[422250243,1778765440000,-501.79454957,0.00013698,2]
[422250247,1778765440000,-500.0,0.00013698,2]
[422250246,1778765440000,-500.0,0.00013698,2]
[422250238,1778765440000,-500.0,0.00013698,2]
[422250237,1778765440000,-500.0,0.00013698,2]
[422250235,1778765440000,-500.0,0.00013698,2]
[422250226,1778765440000,-500.47540204,0.00013698,2]
[422250230,1778765440000,-500.0,0.00013698,2]
[422250225,1778765440000,-500.0,0.00013698,2]
[422250241,1778765440000,-500.0,0.00013698,2]
[422250236,1778765440000,-500.0,0.00013698,2]
[422250245,1778765440000,-500.0,0.00013698,2]
[422250258,1778765440000,-571.05,0.00013698,2]
[422250244,1778765440000,-375.38526683,0.00013698,2]
[422250249,1778765440000,-353.4207141,0.00013698,2]
[422250259,1778765440000,-571.05,0.00013698,2]
[422250251,1778765440000,-571.05,0.00013698,2]
[422250260,1778765440000,-571.05,0.00013698,2]
[422250252,1778765440000,-571.05,0.00013698,2]
[422250248,1778765440000,-500.0,0.00013698,2]
[422250250,1778765440000,-571.05,0.00013698,2]
[422250253,1778765440000,-571.05,0.00013698,2]
[422250255,1778765440000,-571.05,0.00013698,2]
[422250254,1778765440000,-571.05,0.00013698,2]
[422250256,1778765440000,-571.05,0.00013698,2]
[422250228,1778765440000,-500.0,0.00013698,2]
[422250242,1778765440000,-500.0,0.00013698,2]
[422250229,1778765440000,-500.0,0.00013698,2]
[422250205,1778765440000,-500.0,0.00013698,2]
[422250231,1778765440000,-500.0,0.00013698,2]
[422250257,1778765440000,-571.05,0.00013698,2]
[422250207,1778765440000,-500.0,0.00013698,2]
[422250200,1778765440000,-500.0,0.00013698,2]
[422250202,1778765440000,-391.83045184,0.00013698,2]
[422250204,1778765440000,-500.0,0.00013698,2]
[422250206,1778765440000,-500.0,0.00013698,2]
[422250199,1778765440000,-500.0,0.00013698,2]
[422250203,1778765440000,-509.2875148,0.00013698,2]
[422250201,1778765440000,-500.0,0.00013698,2]
[422250208,1778765440000,-500.0,0.00013698,2]
[422250209,1778765440000,-500.0,0.00013698,2]
[422250213,1778765440000,-500.0,0.00013698,2]
[422250215,1778765440000,-500.0,0.00013698,2]
[422250220,1778765440000,-500.0,0.00013698,2]
[422250211,1778765440000,-500.0,0.00013698,2]
[422250217,1778765440000,-500.0,0.00013698,2]
[422250218,1778765440000,-500.0,0.00013698,2]
[422250216,1778765440000,-500.0,0.00013698,2]
[422250222,1778765440000,-500.0,0.00013698,2]
[422250212,1778765440000,-500.0,0.00013698,2]
[422250221,1778765440000,-500.0,0.00013698,2]
[422250219,1778765440000,-500.0,0.00013698,2]
[422250210,1778765440000,-500.0,0.00013698,2]
[422250214,1778765440000,-500.0,0.00013698,2]
[422250224,1778765440000,-500.0,0.00013698,2]
[422250234,1778765440000,-500.0,0.00013698,2]
[422250223,1778765440000,-501.57482876,0.00013698,2]
[422250232,1778765440000,-500.0,0.00013698,2]
[422250233,1778765440000,-500.0,0.00013698,2]
[422250227,1778765440000,-500.0,0.00013698,2]
[422250261,1778765440000,-571.05,0.00013698,2]
[422250299,1778765440000,-569.5,0.00013698,2]